bitfinex/quotes_ETHUSD_20250903
["timestamp","ask_amount","ask_price","bid_price","bid_amount"]
[1756872031998,3.845,4342.6,4342.4,0.1152]
[1756872032208,8.95183331,4342.5,4342.4,0.1152]
[1756872032613,3.0,4342.4,4341.9,5.8958]
[1756872032814,3.845,4342.3,4342.0,0.1152]
[1756872032984,3.845,4342.3,4342.0,0.543]
[1756872033316,3.845,4342.3,4342.1,2.30298557]
[1756872033516,3.845,4342.3,4342.0,0.1152]
[1756872034014,3.845,4342.3,4342.2,0.295]
[1756872034321,3.845,4342.3,4342.0,0.1152]
[1756872034477,4.1431,4342.3,4341.8,0.024]
[1756872034823,4.1431,4342.3,4341.9,2.73093124]
[1756872034824,5.95183331,4342.0,4341.9,2.73093124]
[1756872034977,5.95183331,4342.0,4341.9,3.02593124]
[1756872035176,0.1152,4342.3,4342.2,2.30298005]
[1756872035177,9.79683331,4342.3,4342.2,2.30298005]
[1756872035485,9.79683331,4342.3,4342.1,2.30302656]
[1756872035684,9.79683331,4342.3,4342.2,0.295]
[1756872036026,9.79683331,4342.3,4342.2,2.59798005]
[1756872036925,5.95183331,4342.3,4342.2,2.59798005]
[1756872037125,0.001,4342.8,4342.4,2.30287398]
[1756872037430,0.001,4342.8,4342.7,2.5977149]
[1756872037732,0.001,4342.8,4342.7,2.73594204]
[1756872037896,0.001,4342.8,4342.7,3.63514204]
[1756872038251,0.001,4342.8,4342.7,4.20591021]
[1756872038648,0.001,4342.8,4342.7,8.05291021]
[1756872042345,0.001,4342.8,4342.7,14.45291021]
[1756872048339,0.001,4342.8,4342.7,8.8179149]
[1756872048340,6.25093331,4342.8,4342.7,8.8179149]
[1756872048538,6.25093331,4342.8,4342.7,6.2619149]
[1756872048843,0.001,4342.8,4342.7,6.2619149]
[1756872049041,0.001,4342.8,4342.7,6.5569149]
[1756872050215,0.001,4342.8,4342.7,6.2619149]
[1756872052329,0.001,4342.8,4342.7,6.5569149]
[1756872053328,0.001,4342.8,4342.7,7.87068749]
[1756872053529,0.001,4342.8,4342.7,8.34208749]
[1756872055922,0.001,4342.8,4342.7,7.91428749]
[1756872056250,0.001,4342.8,4342.7,8.34208749]
[1756872057726,0.001,4342.8,4342.7,14.74208749]
[1756872061739,0.001,4342.8,4342.7,8.34208749]
[1756872062255,0.001,4342.8,4342.7,14.74208749]
[1756872064969,0.001,4342.8,4342.7,13.84288749]
[1756872065146,0.001,4342.8,4342.7,12.6619149]
[1756872065346,0.001,4342.8,4342.7,8.8179149]
[1756872065659,8.50253417,4342.8,4342.7,0.1152]
[1756872065962,8.59483266,4342.8,4342.6,2.30271917]
[1756872066162,0.9233,4342.7,4342.6,2.30271917]
[1756872066366,0.9233,4342.7,4342.3,5.34707471]
[1756872066367,1.79450327,4342.7,4342.5,2.30281987]
[1756872066563,0.87120327,4342.7,4342.5,2.30281987]
[1756872066742,0.9233,4342.6,4342.5,2.30281987]
[1756872066946,1.2372,4342.6,4342.5,2.30281987]
[1756872067260,1.92943873,4342.6,4342.5,2.30281987]
[1756872067460,2.94765635,4342.6,4342.5,2.30281987]
[1756872070678,2.02435635,4342.6,4342.5,2.30281987]
[1756872070862,1.00613873,4342.6,4342.5,2.30281987]
[1756872071344,1.50183873,4342.6,4342.5,2.30281987]
[1756872071745,9.1937729,4342.6,4342.3,0.1152]
[1756872071945,9.1937729,4342.6,4341.8,6.424]
[1756872071946,0.9233,4342.5,4342.0,3.9592]
[1756872072159,0.3139,4342.1,4342.0,6.26228613]
[1756872072374,1.2372,4342.1,4342.0,6.26228613]
[1756872072967,0.8096,4342.1,4342.0,6.26228613]
[1756872073371,1.50188825,4342.1,4342.0,6.26228613]
[1756872074346,1.00618825,4342.1,4342.0,6.26228613]
[1756872074567,0.69228825,4342.1,4342.0,6.26228613]
[1756872074852,0.69228825,4342.1,4342.0,2.41828613]
[1756872075479,1.00618825,4342.1,4342.0,2.41828613]
[1756872076000,1.64526707,4342.1,4342.0,0.1152]
[1756872076278,3.792,4342.0,4341.8,0.024]
[1756872076451,3.0,4341.7,4341.5,0.004]
[1756872076650,9.46119832,4341.6,4341.5,0.004]
[1756872076858,10.47683496,4341.6,4341.5,0.004]
[1756872077878,10.58984841,4341.6,4341.5,0.004]
[1756872078074,10.47683496,4341.6,4341.5,0.004]
[1756872078378,12.60878093,4341.6,4341.5,0.004]
[1756872079183,12.72366645,4341.6,4341.5,0.004]
[1756872080260,12.60878093,4341.6,4341.5,0.004]
[1756872083412,10.30548261,4341.6,4341.5,0.004]
[1756872084407,12.60878093,4341.6,4341.5,0.004]
[1756872085072,10.30548261,4341.6,4341.5,0.004]
[1756872086501,12.60878093,4341.6,4341.5,0.004]
[1756872090309,13.40078093,4341.6,4341.5,0.004]
[1756872095548,20.56078093,4341.6,4341.5,0.004]
[1756872097720,6.09535137,4341.5,4341.4,0.004]
[1756872097922,10.10245934,4341.5,4341.4,0.004]
[1756872098123,11.32365934,4341.5,4341.4,0.004]
[1756872098548,6.09540443,4341.4,4341.1,0.004]
[1756872098867,17.6408386,4341.4,4341.1,0.004]
[1756872099064,18.4269386,4341.4,4341.1,0.004]
[1756872099282,20.65129198,4341.4,4341.1,0.004]
[1756872099482,20.65129198,4341.4,4340.9,0.004]
[1756872099483,3.792,4341.3,4340.9,0.004]
[1756872099635,13.35995084,4341.0,4340.9,0.004]
[1756872099841,17.52025084,4341.0,4340.9,0.004]
[1756872100051,18.42715084,4341.0,4340.9,0.004]
[1756872100254,20.60410814,4341.0,4340.9,0.004]
[1756872102882,5.30366974,4340.9,4340.8,0.024]
[1756872103384,6.52486974,4340.9,4340.8,0.024]
[1756872109948,6.08976974,4340.9,4340.8,0.024]
[1756872110148,7.29701606,4340.9,4340.8,0.024]
[1756872110484,14.45701606,4340.9,4340.8,0.024]
[1756872111440,13.98521606,4340.9,4340.8,0.024]
[1756872112182,14.45701606,4340.9,4340.8,0.024]
[1756872113470,13.98521606,4340.9,4340.8,0.024]
[1756872113783,0.001,4342.1,4340.9,2.30366974]
[1756872113952,0.001,4342.1,4340.8,0.7833]
[1756872113953,0.1152,4341.3,4340.8,0.024]
[1756872114148,3.857,4341.4,4340.8,0.024]
[1756872114347,2.741,4341.3,4340.8,0.1392]
[1756872114597,7.26433417,4341.2,4340.8,0.024]
[1756872114889,0.1152,4340.9,4340.8,0.024]
[1756872115069,3.9752,4340.9,4340.8,0.024]
[1756872115784,3.9762,4340.9,4340.8,0.024]
[1756872116481,0.1162,4340.9,4340.8,2.56130563]
[1756872116651,0.001,4340.9,4340.8,2.56130563]
[1756872117278,0.001,4340.9,4340.8,2.67650563]
[1756872119364,0.001,4340.9,4340.8,2.89121834]
[1756872126190,0.001,4340.9,4340.8,2.89110904]
[1756872127157,11.04709235,4340.9,4340.8,0.35380341]
[1756872127367,16.46596209,4340.9,4340.8,0.024]
[1756872127658,14.16229235,4340.9,4340.8,0.024]
[1756872127852,16.46596209,4340.9,4340.8,0.024]
[1756872128083,19.13491551,4340.9,4340.8,0.024]
[1756872128287,6.09572281,4340.8,4340.7,0.004]
[1756872128462,7.71972281,4340.8,4340.7,0.004]
[1756872128794,8.95582281,4340.8,4340.7,0.004]
[1756872132955,8.95582281,4340.8,4340.6,0.004]
[1756872132956,6.09577588,4340.7,4340.6,0.004]
[1756872133184,18.1756762,4340.7,4340.6,0.004]
[1756872133350,3.09593512,4340.4,4340.3,0.004]
[1756872133556,14.9039847,4340.1,4339.9,0.004]
[1756872133752,22.00320317,4340.1,4339.9,0.004]
[1756872134581,18.35530519,4340.1,4339.9,0.004]
[1756872135065,16.05121082,4340.1,4339.9,0.004]
[1756872135263,10.95511082,4340.1,4339.9,0.004]
[1756872135471,12.92719235,4340.1,4339.9,0.004]
[1756872136991,16.46738672,4340.1,4339.9,0.004]
[1756872137295,22.41937907,4340.1,4339.9,0.004]
[1756872137499,20.1152847,4340.1,4339.9,0.004]
[1756872137704,14.16329235,4340.1,4339.9,0.004]
[1756872137999,12.92719235,4340.1,4339.9,0.004]
[1756872138695,13.67549235,4340.1,4339.9,0.004]
[1756872139561,14.16329235,4340.1,4339.9,0.004]
[1756872139964,18.34451511,4340.1,4339.9,0.004]
[1756872140779,16.04042074,4340.1,4339.9,0.004]
[1756872141791,18.34451511,4340.1,4339.9,0.004]
[1756872142103,14.48451511,4340.1,4339.9,0.004]
[1756872142599,12.18042074,4340.1,4340.0,64.78846591]
[1756872142792,9.06719235,4340.1,4340.0,64.78846591]
[1756872143498,10.30329235,4340.1,4340.0,64.78846591]
[1756872144161,9.06719235,4340.1,4340.0,64.78846591]
[1756872144367,10.30329235,4340.1,4340.0,64.78846591]
[1756872145567,9.06719235,4340.1,4340.0,64.78846591]
[1756872147393,10.54032087,4340.1,4340.0,64.78846591]
[1756872147708,11.48622087,4340.1,4340.0,64.78846591]
[1756872148190,11.19602087,4340.1,4340.0,64.78846591]
[1756872148412,11.48622087,4340.1,4340.0,64.78846591]
[1756872148598,13.79031524,4340.1,4340.0,64.78846591]
[1756872149173,15.41431524,4340.1,4340.0,64.78846591]
[1756872149379,21.36630759,4340.1,4340.0,64.78846591]
[1756872150076,22.15830759,4340.1,4340.0,64.78846591]
[1756872151293,26.01230759,4340.1,4340.0,64.78846591]
[1756872151690,26.01230759,4340.1,4340.0,59.71151833]
[1756872152093,26.01230759,4340.1,4340.0,59.71551833]
[1756872152801,26.01230759,4340.1,4340.0,55.31934553]
[1756872153501,26.01230759,4340.1,4340.0,50.92317273]
[1756872153892,26.01230759,4340.1,4340.0,1e-08]
[1756872154090,24.82937907,4340.1,4340.0,1e-08]
[1756872154291,24.83037907,4340.1,4340.0,1e-08]
[1756872154492,24.03837907,4340.1,4340.0,1e-08]
[1756872154703,20.18337907,4340.1,4340.0,1e-08]
[1756872154902,20.58227907,4340.1,4340.0,1e-08]
[1756872155084,21.02117907,4340.1,4340.0,1e-08]
[1756872155284,24.81317907,4340.1,4340.0,1e-08]
[1756872156310,22.5090847,4340.1,4340.0,1e-08]
[1756872156479,24.81317907,4340.1,4340.0,1e-08]
[1756872158812,15.34019235,4340.1,4340.0,1e-08]
[1756872158987,15.33919235,4340.1,4340.0,1e-08]
[1756872159182,10.69119235,4340.1,4340.0,0.03910001]
[1756872159523,5.481,4340.1,4340.0,2.36764747]
[1756872159700,5.482,4340.1,4340.0,2.96435665]
[1756872160222,3.858,4340.1,4340.0,2.96435665]
[1756872160612,3.858,4340.1,4340.0,2.48284747]
[1756872160787,3.858,4340.1,4340.0,2.34324747]
[1756872163687,0.1162,4340.3,4340.2,2.30404128]
[1756872163893,0.001,4340.3,4340.2,2.30404128]
[1756872164087,0.001,4340.3,4340.2,2.48274128]
[1756872164325,0.001,4340.3,4340.2,3.55702939]
[1756872164820,0.001,4340.3,4340.2,3.5800698]
[1756872165495,0.001,4340.3,4340.2,3.55702939]
[1756872166115,0.001,4340.3,4340.2,9.53206215]
[1756872166293,0.001,4340.3,4340.2,9.50902174]
[1756872166632,0.001,4340.3,4340.2,3.55702939]
[1756872167030,0.001,4340.3,4340.2,7.41802939]
[1756872167208,0.001,4340.3,4340.2,13.81802939]
[1756872169641,0.001,4340.3,4340.2,3.53262939]
[1756872169931,1.1763,4340.3,4340.0,1e-08]
[1756872170103,0.287,4340.3,4340.2,2.30404128]
[1756872170728,0.7259,4340.3,4340.2,2.30404128]
[1756872171026,1.1763,4340.3,4340.0,1e-08]
[1756872171211,0.287,4340.3,4340.2,2.30404128]
[1756872171810,1.1763,4340.3,4340.2,2.30404128]
[1756872172005,0.4399,4340.3,4340.2,2.30404128]
[1756872172210,0.001,4340.3,4340.2,2.30404128]
[1756872172395,0.001,4340.3,4340.2,2.34314128]
[1756872172848,0.001,4340.3,4340.2,2.92346977]
[1756872173499,0.001,4340.3,4340.2,2.41924128]
[1756872173696,0.7374,4340.3,4340.2,2.30404128]
[1756872173937,1.1763,4340.3,4340.2,2.30404128]
[1756872175739,0.001,4340.3,4340.2,2.30404128]
[1756872176801,0.287,4340.3,4340.2,2.30404128]
[1756872176997,1.1763,4340.3,4340.0,2.30411071]
[1756872177202,0.8893,4340.2,4340.0,2.30411071]
[1756872177403,1.1753,4340.1,4340.0,2.30411071]
[1756872177742,1.1753,4340.1,4340.0,1e-08]
[1756872178106,1.1753,4340.1,4340.0,2.30414747]
[1756872178906,1.1753,4340.1,4340.0,1e-08]
[1756872179301,0.1152,4340.2,4340.0,2.30414747]
[1756872179530,3.861,4340.1,4340.0,2.30414747]
[1756872180031,0.1152,4340.2,4340.1,2.30409437]
[1756872180206,3.9762,4340.2,4340.1,2.30409437]
[1756872181740,4.278,4340.2,4340.1,2.30409437]
[1756872182048,5.1879,4340.2,4340.1,2.30409437]
[1756872182415,0.1152,4340.2,4340.1,2.30409437]
[1756872182620,0.1152,4340.2,4340.1,2.34319437]
[1756872182803,0.001,4340.3,4340.1,2.34319437]
[1756872182804,0.001,4340.3,4340.2,2.30404128]
[1756872183006,0.001,4340.3,4340.2,2.35148169]
[1756872183247,0.001,4340.3,4340.2,12.74274128]
[1756872183650,0.001,4340.8,4340.7,2.30377588]
[1756872183853,0.001,4340.8,4340.7,2.32681363]
[1756872184008,0.001,4340.8,4340.7,3.30734283]
[1756872184211,0.001,4340.8,4340.7,3.33174283]
[1756872185012,0.001,4340.8,4340.7,3.30734283]
[1756872186272,0.001,4340.8,4340.7,2.45807588]
[1756872186979,0.001,4340.8,4340.7,2.41897588]
[1756872187280,1.2127,4340.8,4340.7,2.41897588]
[1756872187578,1.2127,4340.8,4340.7,2.30377588]
[1756872188043,0.001,4340.8,4340.7,2.30377588]
[1756872188669,0.3028,4340.8,4340.7,2.30377588]
[1756872188874,0.7576,4340.8,4340.7,2.30377588]
[1756872190363,0.001,4340.8,4340.7,2.30377588]
[1756872190681,0.3028,4340.8,4340.7,2.30377588]
[1756872191478,0.7576,4340.8,4340.7,2.30377588]
[1756872191776,1.2127,4340.8,4340.7,2.30377588]
[1756872192872,12.47869371,4340.8,4340.5,0.1152]
[1756872193082,12.47869371,4340.8,4340.0,1e-08]
[1756872193083,4.624,4340.7,4340.0,1e-08]
[1756872193467,0.3018,4340.1,4340.0,1e-08]
[1756872193671,4.1628,4340.1,4340.0,2.30414747]
[1756872193872,5.0727,4340.1,4340.0,2.30414747]
[1756872194067,5.0727,4340.1,4340.0,1e-08]
[1756872194462,5.0727,4340.1,4340.0,2.30414747]
[1756872195161,1.2117,4340.1,4340.0,2.30414747]
[1756872195471,5.0727,4340.1,4340.0,2.30414747]
[1756872197298,0.7569,4340.1,4340.0,2.30414747]
[1756872197602,3.9752,4340.2,4340.1,2.30409437]
[1756872197811,1.624,4340.7,4340.6,2.30382896]
[1756872198101,1.624,4340.7,4340.6,2.34292896]
[1756872198301,3.861,4340.8,4340.7,2.30377588]
[1756872200310,4.6176,4340.8,4340.7,2.30377588]
[1756872200505,4.3158,4340.8,4340.7,2.30377588]
[1756872200705,3.861,4340.8,4340.7,2.30377588]
[1756872201487,4.1628,4340.8,4340.7,2.30377588]
[1756872201791,5.0727,4340.8,4340.7,2.30377588]
[1756872202187,5.0727,4340.8,4340.4,0.1152]
[1756872202188,5.59159,4340.8,4340.4,0.1152]
[1756872202386,5.59159,4340.8,4340.4,2.30391743]
[1756872202387,0.1152,4340.7,4340.4,2.30391743]
[1756872202591,0.3018,4340.5,4340.4,2.30393512]
[1756872202803,4.1628,4340.5,4340.4,2.30393512]
[1756872203097,5.0727,4340.5,4340.4,2.30393512]
[1756872204714,5.0727,4340.5,4340.1,0.1152]
[1756872205011,4.6176,4340.5,4340.2,2.30402798]
[1756872205306,0.9099,4340.4,4339.9,0.004]
[1756872205483,1.0251,4340.4,4340.2,2.30402959]
[1756872205683,1.2117,4340.3,4340.2,2.30402959]
[1756872208818,0.4551,4340.7,4340.6,2.30382896]
[1756872208989,7.4303,4340.7,4340.6,2.30382896]
[1756872209192,7.8851,4340.7,4340.6,2.30382896]
[1756872209492,3.57,4340.7,4340.6,2.30382896]
[1756872209698,7.43,4340.7,4340.6,2.30382896]
[1756872209900,6.9752,4340.7,4340.6,2.30382896]
[1756872210281,7.2779,4340.7,4340.6,2.30382896]
[1756872210487,7.7453,4340.7,4340.6,2.30382896]
[1756872211798,8.2339,4340.7,4340.6,2.30382896]
[1756872212496,8.2339,4340.7,4340.6,2.25382896]
[1756872213725,8.2339,4340.7,4340.0,0.11520001]
[1756872213934,5.2339,4340.7,4340.5,2.30387066]
[1756872214224,1.47959,4340.6,4340.4,2.30393281]
[1756872214426,3.858,4340.5,4340.4,2.30393281]
[1756872214645,5.1167,4340.5,4340.4,2.30393281]
[1756872215624,4.3254,4340.5,4340.4,2.30393281]
[1756872218031,3.858,4340.5,4340.4,2.30393281]
[1756872220310,4.3254,4340.5,4340.4,2.30393281]
[1756872221929,0.001,4340.8,4340.4,0.5233328]
[1756872222235,0.001,4340.8,4340.7,2.30377588]
[1756872222405,0.001,4340.8,4340.7,2.32681363]
[1756872222606,0.001,4340.8,4340.7,2.39031363]
[1756872222806,0.001,4340.8,4340.7,3.90694723]
[1756872223232,0.001,4340.8,4340.7,3.93134723]
[1756872225429,0.001,4340.8,4340.7,3.90694723]
[1756872225633,0.001,4340.9,4340.8,10.36974253]
[1756872225634,1e-08,4340.9,4340.8,10.36974253]
[1756872225833,1e-08,4340.9,4340.8,20.65414253]
[1756872226019,1e-08,4340.9,4340.8,22.9611505]
[1756872227008,1e-08,4341.4,4341.1,2.30356361]
[1756872227208,1e-08,4341.7,4341.4,2.30337985]
[1756872227421,1e-08,4341.8,4341.7,2.30324527]
[1756872227619,1e-08,4341.8,4341.7,13.59924208]
[1756872227817,1e-08,4341.8,4341.7,13.63970963]
[1756872228304,1e-08,4341.8,4341.7,13.61530963]
[1756872232145,1e-08,4341.8,4341.7,13.73050963]
[1756872232529,1e-08,4341.8,4341.7,9.87050963]
[1756872232719,1e-08,4341.8,4341.7,13.72850963]
[1756872232914,1e-08,4341.8,4341.7,13.68940963]
[1756872233145,1.25870001,4341.8,4341.7,7.28940963]
[1756872236945,1.25870001,4341.8,4341.7,3.43140963]
[1756872237149,1.25870001,4341.8,4341.7,2.41844527]
[1756872237453,1.25870001,4341.8,4341.7,2.30324527]
[1756872237946,1e-08,4341.8,4341.7,2.30324527]
[1756872238554,0.46740001,4341.8,4341.7,2.30324527]
[1756872239252,0.46740001,4341.8,4341.7,6.16224527]
[1756872240420,0.76660001,4341.8,4341.7,6.16224527]
[1756872240623,1.24760001,4341.8,4341.7,6.16224527]
[1756872240848,1.24860001,4341.8,4341.7,6.16224527]
[1756872242655,0.00100001,4341.8,4341.7,7.05942298]
[1756872243326,1e-08,4341.8,4341.7,7.08382298]
[1756872243919,1e-08,4341.8,4341.7,10.05942298]
[1756872244124,1e-08,4341.8,4341.7,10.08382298]
[1756872244336,1e-08,4341.8,4341.7,10.05942298]
[1756872244663,1e-08,4341.8,4341.7,10.08382298]
[1756872245927,1e-08,4341.8,4341.7,10.05842298]
[1756872251355,1e-08,4341.8,4341.7,10.05542298]
[1756872251949,1.24320001,4341.8,4341.7,10.01632298]
[1756872253033,0.94400001,4341.8,4341.7,10.01632298]
[1756872253763,0.48100001,4341.8,4341.7,10.01632298]
[1756872254061,0.94400001,4341.8,4341.7,10.01632298]
[1756872254755,1e-08,4341.8,4341.7,10.01632298]
[1756872254945,1e-08,4341.8,4341.7,10.01532298]
[1756872259334,1e-08,4341.8,4341.7,16.00443536]
[1756872261059,1e-08,4342.1,4342.0,2.30308613]
[1756872261261,1e-08,4342.1,4342.0,13.93485066]
[1756872261436,1e-08,4342.1,4342.0,13.97395066]
[1756872261878,1e-08,4342.3,4342.2,2.30298005]
[1756872262175,1e-08,4342.3,4342.2,6.15398005]
[1756872262352,1e-08,4342.3,4342.2,11.13229312]
[1756872263482,1e-08,4342.3,4342.2,17.53229312]
[1756872264843,1.24320001,4342.3,4342.2,17.49219312]
[1756872265668,1.24320001,4342.3,4342.2,13.64219312]
[1756872265864,1.24320001,4342.3,4342.2,17.49219312]
[1756872266276,1.24320001,4342.3,4342.2,10.64219312]
[1756872266479,1.24320001,4342.3,4342.2,6.15298005]
[1756872266685,1.24320001,4342.3,4342.2,2.30298005]
[1756872266981,1.24320001,4342.3,4342.2,6.15298005]
[1756872267765,1e-08,4342.3,4342.2,6.15298005]
[1756872268092,1.24320001,4342.3,4342.2,6.15298005]
[1756872268266,1.24320001,4342.3,4342.2,8.24510791]
[1756872268465,1e-08,4342.3,4342.2,8.28420791]
[1756872268669,1e-08,4342.3,4342.2,8.39940791]
[1756872269393,1.21640001,4342.3,4342.2,4.51030791]
[1756872269693,1.21640001,4342.3,4342.2,6.27018005]
[1756872271587,1.21640001,4342.3,4342.2,12.67018005]
[1756872272468,1e-08,4342.3,4342.2,12.67018005]
[1756872274707,1.21640001,4342.3,4342.2,12.67018005]
[1756872276516,1.21640001,4342.3,4342.2,12.66818005]
[1756872277409,0.43150001,4342.3,4342.2,12.66818005]
[1756872277614,1e-08,4342.3,4342.2,14.76030791]
[1756872280020,0.74350001,4342.3,4342.2,14.76030791]
[1756872280186,1.21640001,4342.3,4342.2,8.81818005]
[1756872280386,1.21640001,4342.3,4342.2,12.66718005]
[1756872283115,1.21640001,4342.3,4342.2,6.26718005]
[1756872285331,1.21640001,4342.3,4342.2,2.41818005]
[1756872285531,1.21640001,4342.3,4342.2,6.26718005]
[1756872285701,0.90440001,4342.3,4342.2,6.26718005]
[1756872286035,1e-08,4342.3,4342.2,6.26718005]
[1756872287104,1e-08,4342.3,4342.2,12.66718005]
[1756872287335,1e-08,4342.3,4342.2,14.75920791]
[1756872288411,1e-08,4342.3,4342.2,14.79830791]
[1756872288734,1e-08,4342.3,4342.2,14.75920791]
[1756872289445,0.43150001,4342.3,4342.2,14.75920791]
[1756872290138,0.90440001,4342.3,4342.2,14.75920791]
[1756872290927,1.21640001,4342.3,4342.2,14.75920791]
[1756872292314,1.21640001,4342.3,4342.2,8.35920791]
[1756872292847,0.90440001,4342.3,4342.2,8.35920791]
[1756872293768,1.21640001,4342.3,4342.2,2.41818005]
[1756872293937,1.21640001,4342.3,4342.2,6.26718005]
[1756872295018,1e-08,4342.3,4342.2,6.26718005]
[1756872297125,1e-08,4342.3,4342.2,6.30628005]
[1756872297558,1e-08,4342.8,4342.7,2.3027149]
[1756872297867,0.4325,4343.3,4342.9,2.30260885]
[1756872298028,0.4325,4343.3,4342.9,12.12564731]
[1756872298228,0.4325,4343.3,4342.9,12.10262123]
[1756872298925,0.4325,4343.3,4342.9,12.14172123]
[1756872299664,0.4325,4343.3,4342.9,6.19170885]
[1756872299955,0.4325,4343.3,4342.9,7.96052111]
[1756872300462,0.4325,4343.3,4342.9,14.36052111]
[1756872301755,0.001,4343.3,4342.9,14.36052111]
[1756872304067,0.4672,4344.4,4343.7,2.30218477]
[1756872304368,0.02,4344.8,4343.7,6.15018477]
[1756872304569,0.4672,4344.1,4343.7,6.30448477]
[1756872304864,0.4672,4344.1,4343.7,14.4144535]
[1756872305574,0.11225656,4344.8,4344.7,2.30165488]
[1756872305945,0.90845656,4344.8,4344.7,2.30165488]
[1756872306156,1.2834,4344.8,4344.7,2.30165488]
[1756872307942,1.2834,4344.8,4344.7,6.14965488]
[1756872309245,1.2834,4344.8,4344.7,2.30165488]
[1756872311177,1.2834,4344.8,4344.7,6.14965488]
[1756872311778,1.2834,4344.8,4344.7,2.30165488]
[1756872313059,1.2834,4344.8,4344.7,2.41685488]
[1756872313462,1.2834,4344.8,4344.7,6.26485488]
[1756872316348,0.02,4344.8,4344.7,7.12151519]
[1756872316647,0.02,4344.8,4344.7,10.16061519]
[1756872317052,0.02,4344.8,4344.7,10.65401519]
[1756872317251,0.02,4344.8,4344.7,10.63291519]
[1756872317983,0.02,4344.8,4344.7,10.16061519]
[1756872319675,0.02,4344.8,4344.7,10.63291519]
[1756872320493,0.02,4344.8,4344.7,10.16061519]
[1756872321382,0.02,4344.8,4344.7,16.56061519]
[1756872322786,0.02,4344.8,4344.7,12.71261519]
[1756872323087,0.02,4344.8,4344.7,16.55961519]
[1756872323288,0.02,4344.8,4344.7,17.05301519]
[1756872323691,0.02,4344.8,4344.7,16.55961519]
[1756872324301,0.02,4344.8,4344.7,16.52051519]
[1756872324488,0.02,4344.8,4344.7,16.55961519]
[1756872326770,0.02,4344.8,4344.7,12.71261519]
[1756872327091,0.02,4344.8,4344.7,16.52051519]
[1756872327486,0.02,4344.8,4344.7,16.55961519]
[1756872327691,0.02,4344.8,4344.7,16.52051519]
[1756872328567,0.02,4344.8,4344.7,16.55961519]
[1756872329372,0.02,4344.8,4344.7,16.52051519]
[1756872329968,1.2228,4344.8,4344.7,12.67351519]
[1756872330207,1.2228,4344.8,4344.7,16.51951519]
[1756872330376,1.2228,4344.8,4344.7,10.11951519]
[1756872330706,0.7627,4344.8,4344.7,10.11951519]
[1756872331066,1.2228,4344.8,4344.7,10.11951519]
[1756872333189,1.2228,4344.8,4344.7,2.41685488]
[1756872333507,1.2228,4344.8,4344.7,0.1152]
[1756872333673,5.14641044,4344.8,4343.5,1.622]
[1756872333874,7.26094003,4344.2,4343.9,2.30205668]
[1756872334070,0.3017,4344.0,4343.9,2.30205668]
[1756872334306,0.3017,4344.0,4343.8,0.1152]
[1756872334510,0.9011,4343.9,4343.8,0.1152]
[1756872334805,1.2028,4343.9,4343.8,0.1152]
[1756872335010,1.2028,4343.9,4343.8,2.41733177]
[1756872336204,1.2028,4343.9,4343.8,0.1152]
[1756872337330,1.2028,4343.9,4342.7,2.3026781]
[1756872337331,2.118376,4343.9,4343.4,0.1152]
[1756872337517,0.9011,4343.8,4343.5,2.30224593]
[1756872337894,0.3017,4343.6,4343.5,2.30224593]
[1756872338214,1.2028,4343.6,4343.5,2.30224593]
[1756872338842,0.9011,4343.6,4343.5,2.30224593]
[1756872339119,1.59311997,4344.0,4343.9,2.30207877]
[1756872339313,1.89481997,4344.0,4343.9,2.30207877]
[1756872341694,1.89481997,4344.0,4343.5,2.30228967]
[1756872342019,7.26094003,4343.6,4342.8,0.024]
[1756872342199,7.26094003,4343.6,4342.9,2.30260775]
[1756872342525,0.3017,4343.0,4342.9,2.30260775]
[1756872342749,1.2028,4343.0,4342.9,2.30260775]
[1756872343047,1.2028,4343.0,4342.8,0.1392]
[1756872343362,1.2028,4343.0,4342.8,2.44185771]
[1756872343664,0.9011,4342.9,4342.8,2.44185771]
[1756872343834,1.2028,4342.9,4342.8,2.44185771]
[1756872345520,1.2028,4342.9,4342.8,2.32665771]
[1756872346133,0.7618,4342.9,4342.8,2.32665771]
[1756872346450,1.2028,4342.9,4342.8,2.32665771]
[1756872350446,1.2028,4342.9,4342.8,0.024]
[1756872350751,2.11839309,4342.9,4342.8,0.024]
[1756872350943,2.23359309,4342.9,4342.8,0.024]
[1756872351757,1.318,4342.9,4342.8,0.024]
[1756872358254,6.62060885,4342.9,4342.8,0.024]
[1756872360884,6.62060885,4342.9,4342.1,0.004]
[1756872360885,3.09487398,4342.4,4342.1,0.004]
[1756872361173,3.792,4342.2,4342.1,0.004]
[1756872361459,13.83279569,4342.2,4342.1,0.004]
[1756872361762,14.73919569,4342.2,4342.1,0.004]
[1756872362446,18.58719569,4342.2,4342.1,0.004]
[1756872365034,12.49321564,4342.2,4342.1,0.004]
[1756872365441,15.49321564,4342.2,4342.1,0.004]
[1756872366144,6.09503309,4342.1,4342.0,0.004]
[1756872366346,11.25582133,4341.8,4341.7,0.004]
[1756872366658,15.39312133,4341.8,4341.7,0.004]
[1756872366831,16.29952133,4341.8,4341.7,0.004]
[1756872368354,16.39186095,4341.8,4341.7,0.004]
[1756872368554,17.88974748,4341.8,4341.7,0.004]
[1756872371268,18.68174748,4341.8,4341.7,0.004]
[1756872371467,24.74957659,4341.8,4341.7,0.004]
[1756872372470,18.79694748,4341.8,4341.7,0.004]
[1756872372969,18.79694748,4341.8,4340.8,0.024]
[1756872372970,0.792,4341.6,4340.8,0.024]
[1756872373268,24.74957659,4341.8,4340.8,0.024]
[1756872373269,9.04808659,4341.3,4340.8,0.024]
[1756872373451,13.18538659,4341.3,4340.8,0.024]
[1756872373844,14.20698659,4341.3,4340.8,0.024]
[1756872374243,14.2993422,4341.3,4340.8,0.024]
[1756872374575,7.54114214,4341.3,4340.8,0.024]
[1756872374770,9.84459962,4341.3,4340.8,0.024]
[1756872376648,8.60149962,4341.3,4340.8,0.024]
[1756872376852,9.05259962,4341.3,4340.8,0.024]
[1756872378179,9.84459962,4341.3,4340.8,0.024]